[Event "Chessable English Open-ch 2022"]
[Site "Kenilwoth"]
[Date "2022.05.22"]
[Round "7.7"]
[White "Hackner, Oskar A"]
[Black "Okhai, Shabir"]
[Result "1-0"]
[ECO "E60"]
[WhiteElo "2177"]
[BlackElo "2121"]
[Annotator "TA"]
[PlyCount "89"]
[EventDate "2022.05.18"]
[EventType "swiss"]
[EventCountry "ENG"]
[SourceTitle "playchess.com"]
[Source "ChessBase"]
[SourceQuality "1"]
[TimeControl "5400+30"]

{[%evp 9,89,-20,22,-11,12,8,14,13,22,-9,-14,-31,0,0,0,-20,-3,-7,-7,-16,-23,-22,14,-4,9,8,35,0,28,18,10,0,0,-7,62,56,49,0,0,0,0,0,-1,0,97,110,93,106,106,82,126,108,103,81,150,149,167,199,182,196,185,182,182,191,202,171,391,378,533,484,612,579,507,414,888,880,1305,1157,1022,892,29963,29962]} 1. d4 {[%emt 0:00:11]} Nf6 {[%emt 0:00:15]} 2. c4 {[%emt 0:00:01]} g6 {[%emt 0:00:32]} 3. g3 {[%emt 0:00:07]} c6 {[%emt 0:00:05]} 4. b3 {[%emt 0:03:02]} d5 {[%emt 0:00:50]} 5. Bb2 {[%emt 0:00:17]} Bg7 {[%emt 0:00:07]} 6. Bg2 {[%emt 0:00:34] E60: King's Indian: Unusual lines and Fianchetto Variation without Nc3.} O-O {[%emt 0:00:16]} 7. Nf3 {[%emt 0:00:17]} dxc4 {[%emt 0:00:46]} 8. bxc4 {[%emt 0:00:06] The position is equal.} c5 {[%emt 0:00:04]} 9. e3 {[%emt 0:07:47]} cxd4 {[%emt 0:03:49]} 10. exd4 {[%emt 0:00:13]} Nc6 {[%emt 1:28:46]} (10... Qb6 $5 {[%cal Rb6b2]} 11. Qb3 Nc6 $11) 11. O-O {[%emt 0:00:49]} Qb6 {[%emt 0:00:00]} 12. Qb3 {[%emt 0:01:35] [#]} Na5 $146 {[%emt 0:00:00]} ({Predecessor:} 12... Nd7 13. Nbd2 Nxd4 14. Nxd4 Bxd4 15. Bxd4 Qxd4 16. Nf3 Qf6 17. Rad1 Nc5 18. Qe3 b6 {½-½ (76) Borges,W (2156)-Almeida,H (1886) Florianopolis 2019}) 13. Qxb6 {[%emt 0:01:10]} axb6 {[%emt 0:00:00]} 14. Nbd2 {[%emt 0:03:00]} Bf5 {[%emt 0:00:00]} 15. Rfe1 {[%emt 0:05:05] Prevents Ne4.} Rfe8 {[%emt 0:00:00]} 16. Bf1 {[%emt 0:18:57]} Rac8 {[%emt 0:00:00]} 17. Rac1 {[%emt 0:06:20]} h5 {[%emt 0:00:00]} 18. Ba3 {[%emt 0:09:22]} Rc7 {[%emt 0:00:00]} 19. d5 {[%emt 0:06:02]} Bh6 {[%emt 0:00:00]} 20. Bb2 {[%emt 0:05:34] Threatens to win with Bxf6.} Rcc8 {[%emt 0:00:00]} 21. Bd4 {[%emt 0:07:46] [#]} Nd7 {[%emt 0:00:00]} (21... Ne4 $1 $11 22. Be3 (22. Nxe4 Bxc1) 22... Bxe3 23. fxe3 (23. Rxe3 Nxd2 24. Nxd2 b5 $11) 23... e6) 22. Be3 $1 $14 {[%emt 0:01:11]} Bxe3 {[%emt 0:00:00]} 23. Rxe3 {[%emt 0:04:42]} (23. fxe3 $14 Bg4 24. Nd4) 23... b5 $11 {[%emt 0:00:00]} 24. c5 {[%emt 0:03:56]} Rxc5 {[%emt 0:00:00]} 25. Rxc5 {[%emt 0:00:08]} Nxc5 {[%emt 0:00:00]} 26. Bxb5 {[%emt 0:02:47]} Bd7 {[%emt 0:00:00] [#]} (26... Rd8 $11 {keeps the balance.}) 27. Rc3 $1 $36 {[%emt 0:00:20][%mdl 2048] Black is under strong pressure. Black is on the road to losing.} b6 {[%emt 0:00:00] [#]} 28. Rxc5 {[%emt 0:00:57]} bxc5 {[%emt 0:00:00]} 29. Bxd7 {[%emt 0:00:05]} Rd8 {[%emt 0:00:00]} 30. Bb5 {[%emt 0:02:10]} Rxd5 {[%emt 0:00:00]} 31. Kf1 {[%emt 0:00:17]} Kg7 {[%emt 0:00:00]} ({Better is} 31... c4 32. Bxc4 Rc5) 32. Ke2 {[%emt 0:00:15]} f5 {[%emt 0:00:00]} 33. Nc4 {[%emt 0:01:59] Prevents e5.} Nxc4 {[%emt 0:00:00]} 34. Bxc4 {[%emt 0:00:04]} Rd8 {[%emt 0:00:00]} 35. Ne5 {[%emt 0:00:24]} Kf6 {[%emt 0:00:00]} 36. f4 {[%emt 0:00:18]} g5 {[%emt 0:00:00]} 37. a4 {[%emt 0:02:50][%cal Ba2a4,Ba4a5,Ba5a6][%mdl 32] And now a5 would win.} Rd4 $2 {[%emt 0:00:00]} (37... Ra8 {might work better.}) 38. Ke3 $18 {[%emt 0:01:52]} Rd1 {[%emt 0:02:17]} (38... Re4+ $142 39. Kf3 gxf4 40. gxf4 e6) 39. a5 {[%emt 0:01:23]} Ra1 {[%emt 0:00:43]} 40. a6 {[%emt 0:00:30]} Ra3+ {[%emt 0:01:21]} 41. Kf2 {[%emt 0:00:52]} Ra4 {[%emt 0:00:54]} (41... e6 $142 42. Nc6 Ra1) 42. h4 {[%emt 0:00:41]} gxf4 {[%emt 0:00:25]} 43. gxf4 {[%emt 0:00:05]} e6 {[%emt 0:00:35] [#]} 44. Nd7+ $1 {[%emt 0:03:07]} Ke7 {[%emt 0:00:31]} 45. Nb6 {[%emt 0:00:12] Weighted Error Value: White=0.13 (very precise) /Black=0.52} 1-0

[Event "Chessable English Open-ch 2022"]
[Site "Kenilwoth"]
[Date "2022.05.22"]
[Round "7.8"]
[White "Derakhshani, Borna"]
[Black "Southcott-Moyers, Indy"]
[Result "1-0"]
[ECO "A06"]
[WhiteElo "2388"]
[BlackElo "2028"]
[Annotator "TA"]
[PlyCount "101"]
[EventDate "2022.05.18"]
[EventType "swiss"]
[EventCountry "ENG"]
[SourceTitle "playchess.com"]
[Source "ChessBase"]
[SourceQuality "1"]
[TimeControl "5400+30"]

{[%evp 9,101,10,20,14,20,18,22,24,16,20,35,33,42,36,44,27,29,25,76,71,81,65,89,87,84,83,93,76,118,118,104,104,101,90,89,89,90,89,109,104,108,86,135,135,161,171,186,186,245,245,245,245,247,232,399,429,482,480,476,461,482,482,480,475,498,441,678,615,650,590,614,594,710,540,764,723,1205,1182,5916,643,897,885,1242,708,1229,1175,1171,1166,1083,1045,1023,956,768,709]} 1. Nf3 {[%emt 0:03:22]} d5 {[%emt 0:00:09]} 2. b3 {[%emt 0:00:06]} Bg4 {[%emt 0:00:08]} 3. Bb2 {[%emt 0:00:05]} Bxf3 {[%emt 0:00:08]} 4. exf3 {[%emt 0:00:05]} e6 {[%emt 0:00:13]} 5. g3 {[%emt 0:00:28]} Nf6 {[%emt 0:00:10]} 6. Bg2 {[%emt 0:00:05] A06: Réti Opening: 1 Nf3 d5.} g6 {[%emt 0:00:08]} 7. O-O {[%emt 0:00:19]} Bg7 {[%emt 0:00:04]} 8. f4 {[%emt 0:01:03] The position is equal.} O-O {[%emt 0:00:09]} 9. d4 {[%emt 0:05:20][%cal Bd2d4,Bd4e5][%mdl 32]} c6 {[%emt 0:01:57]} 10. Nd2 {[%emt 0:00:10]} Nbd7 {[%emt 0:00:59]} 11. Re1 {[%emt 0:00:54]} Rc8 {[%emt 0:02:33]} 12. Nf3 {[%emt 0:01:56]} c5 {[%emt 0:09:54]} 13. Ne5 {[%emt 0:04:46] [#]} Nxe5 $146 {[%emt 0:05:52]} (13... cxd4 $11 {keeps the balance.} 14. Bxd4 Qe7) ({Predecessor:} 13... Qc7 14. dxc5 Nxc5 15. Qe2 Rfd8 16. Rad1 Nfd7 17. c4 Nxe5 18. fxe5 dxc4 19. Qxc4 b6 {1-0 (26) Radjabov,T (2245)-Azarov,S (2150) Moscow 1998}) 14. dxe5 $16 {[%emt 0:02:14]} Nd7 {[%emt 0:00:28]} 15. h4 {[%emt 0:00:13][%cal Bh2h4,Bh4h5][%mdl 32]} Nb6 {[%emt 0:06:12]} 16. h5 {[%emt 0:01:38]} c4 {[%emt 0:01:15]} 17. Bd4 {[%emt 0:03:18]} Nd7 {[%emt 0:13:01]} 18. Bf3 {[%emt 0:11:01]} (18. Bxa7 b6 19. Rb1 Qc7 20. bxc4 (20. h6 $2 Bxh6 21. bxc4 dxc4 $19) 20... dxc4 21. Bxb6 (21. h6 $2 Bxh6 22. Bxb6 Nxb6 $19) 21... Nxb6 $19) (18. Bf1 {with more complications.} Qa5 19. Qf3 Rfd8 20. bxc4 dxc4 21. Qxb7 Nc5 22. Bxc5 Qxc5 23. Rad1) 18... Nc5 {[%emt 0:05:09]} 19. bxc4 {[%emt 0:15:43]} (19. Qd2 {seems wilder.} b6 20. bxc4 dxc4 21. Red1) 19... dxc4 {[%emt 0:00:15]} 20. Bxc5 {[%emt 0:00:12]} Rxc5 {[%emt 0:00:53]} 21. hxg6 {[%emt 0:00:30]} (21. Bxb7 {feels hotter.} Qxd1 22. Raxd1 Rc7 23. Bf3) 21... hxg6 {[%emt 0:00:29]} 22. Bxb7 {[%emt 0:00:14]} Qxd1 {[%emt 0:00:40]} 23. Rexd1 {[%emt 0:00:38]} Rb8 {[%emt 0:00:26]} 24. Rd7 {[%emt 0:00:59]} Bf8 {[%emt 0:05:34]} 25. Be4 {[%emt 0:09:32] White is more active.} a5 {[%emt 0:04:24]} (25... Ra5 $142) 26. Rad1 $36 {[%emt 0:01:58][%mdl 2048] White is on the roll.} Rbc8 {[%emt 0:05:55] [#]} 27. Ra7 $1 {[%emt 0:04:27]} R5c7 {[%emt 0:02:17]} 28. Rxa5 {[%emt 0:00:42]} Bc5 {[%emt 0:00:11]} (28... Bb4 {is a better defense.} 29. Ra4 Bc3) 29. a4 $18 {[%emt 0:02:02][%cal Ba2a4,Ba4a5,Ba5a6][%mdl 32]} Rb8 {[%emt 0:01:41]} 30. Rb5 {[%emt 0:00:12]} Rb6 {[%emt 0:00:27]} 31. Rdb1 {[%emt 0:06:49]} Ra6 {[%emt 0:02:21]} (31... Rxb5 32. axb5 Bb6) 32. a5 {[%emt 0:00:30]} Bd4 {[%emt 0:00:38] White is clearly winning.} 33. Bb7 {[%emt 0:00:16]} Ra7 {[%emt 0:00:24]} 34. a6 {[%emt 0:00:16]} Bc5 {[%emt 0:00:46]} 35. Rd1 {[%emt 0:00:15]} Kg7 {[%emt 0:00:14]} 36. Kg2 {[%emt 0:00:44]} Kf8 {[%emt 0:00:46]} 37. g4 {[%emt 0:01:26]} Ke7 {[%emt 0:00:45]} (37... Kg7 $142 38. c3 Bf8) 38. Kf3 {[%emt 0:01:51]} Ke8 {[%emt 0:00:42]} 39. Rd2 {[%emt 0:00:15]} Ke7 {[%emt 0:00:13]} 40. Rb1 {[%emt 0:01:11]} Ke8 {[%emt 0:00:22]} 41. Rbd1 {[%emt 0:01:38] Rd8+ is the strong threat.} Ke7 {[%emt 0:00:08]} 42. Rd8 {[%emt 0:00:17] Threatens to win with Rh8.} Bb4 {[%emt 0:00:22]} 43. Rb8 {[%emt 0:00:25]} Rd7 {[%emt 0:00:44] [#]} 44. Rxd7+ {[%emt 0:00:16]} (44. Bc6 $142 $1 Bc5 45. Bxd7) 44... Kxd7 {[%emt 0:00:02][%mdl 4096] Endgame KRB-KRB} 45. Rc8 {[%emt 0:00:17]} c3 {[%emt 0:00:12]} 46. Rc4 {[%emt 0:00:05]} Ba5 {[%emt 0:00:09]} 47. Ke4 {[%emt 0:00:05]} Ke7 {[%emt 0:00:54]} 48. f3 {[%emt 0:00:30]} Kd7 {[%emt 0:00:10]} 49. Kd3 {[%emt 0:00:06]} Ke7 {[%emt 0:00:08]} 50. Ra4 {[%emt 0:00:03]} Bb6 {[%emt 0:01:03]} 51. Kxc3 {[%emt 0:00:05] Weighted Error Value: White=0.11 (very precise) /Black=0.30} 1-0

[Event "Chessable English Open-ch 2022"]
[Site "Kenilwoth"]
[Date "2022.05.22"]
[Round "7.9"]
[White "Thompson, Ian D"]
[Black "Khoury, Theo"]
[Result "1/2-1/2"]
[ECO "D34"]
[WhiteElo "2074"]
[BlackElo "1927"]
[Annotator "TA"]
[PlyCount "95"]
[EventDate "2022.05.18"]
[EventType "swiss"]
[EventCountry "ENG"]
[SourceTitle "playchess.com"]
[Source "ChessBase"]
[SourceQuality "1"]
[TimeControl "5400+30"]

{[%evp 24,95,39,36,55,43,73,0,0,0,-9,-18,-26,-21,-18,-10,0,0,0,-14,-18,-19,-25,-41,0,0,85,87,85,85,85,85,81,64,70,63,61,66,66,66,62,54,79,72,97,97,88,94,114,77,77,70,71,71,79,77,110,110,171,171,304,304,304,297,263,0,2,2,8,0,0,0,8,8]} 1. Nf3 {[%emt 0:00:03]} Nf6 {[%emt 0:00:07]} 2. c4 {[%emt 0:00:16]} e6 {[%emt 0:00:05]} 3. Nc3 {[%emt 0:00:31]} c5 {[%emt 0:00:41]} 4. g3 {[%emt 0:01:26]} d5 {[%emt 0:00:18]} 5. cxd5 {[%emt 0:00:41]} exd5 {[%emt 0:00:08]} 6. d4 {[%emt 0:00:03]} Nc6 {[%emt 0:00:12]} 7. Bg2 {[%emt 0:00:22]} Be7 {[%emt 0:02:17]} 8. O-O {[%emt 0:01:45]} O-O {[%emt 0:00:14]} 9. Bg5 {[%emt 0:10:14]} c4 {[%emt 0:09:10]} 10. Ne5 {[%emt 0:03:36]} Be6 {[%emt 0:01:42]} 11. Nxc6 {[%emt 0:05:10]} bxc6 {[%emt 0:01:47]} 12. b3 {[%emt 0:03:03]} Qa5 {[%emt 0:03:01]} 13. Qc2 {[%emt 0:05:26]} cxb3 {[%emt 0:02:51] D34: Tarrasch Defence: 6 g3 Nf6 7 Bg2 Be7.} 14. axb3 {[%emt 0:00:50]} Qb6 {[%emt 0:00:38] [#]} 15. Na4 $146 {[%emt 0:10:50]} (15. e3 $16) ({Predecessor:} 15. Ra4 Rab8 16. Bf4 Rb7 17. Rfa1 Bd7 18. Nd1 Ra8 19. Bf3 h6 20. Be5 g6 21. Ra6 {0-1 (34) Herrmann,J (1531)-Goldmann,D (1629) Willingen 2021}) 15... Qxd4 $11 {[%emt 0:03:43]} 16. Be3 {[%emt 0:03:12]} Qb4 {[%emt 0:01:58]} 17. Qxc6 {[%emt 0:02:48][%cal Oa4b6]} Rfc8 {[%emt 0:06:53]} ({Resist} 17... Qxb3 18. Nb6 $1 {[%mdl 512]} Rab8 19. Rfb1 (19. Rxa7 Bd8 $11) 19... Qxb1+ 20. Rxb1 $16) 18. Qa6 {[%emt 0:00:13]} Ng4 {[%emt 0:09:35]} 19. Bf4 {[%emt 0:01:35]} Qxb3 {[%emt 0:05:58]} 20. Rfb1 {[%emt 0:05:06]} Qc2 {[%emt 0:00:28] aiming for ...g5.} 21. Rc1 {[%emt 0:02:06]} Qf5 {[%emt 0:02:55] Hoping for ...g5.} 22. Rxc8+ {[%emt 0:03:29]} Rxc8 {[%emt 0:00:38]} (22... Bxc8 $2 23. Qc6 Qf6 24. Qxa8 $18) 23. Qxa7 {[%emt 0:00:23]} Bf6 {[%emt 0:05:19]} 24. Rf1 {[%emt 0:02:59]} Qh5 {[%emt 0:03:28]} (24... g5 $11 {remains equal.} 25. Bd6 Be5) 25. h3 $16 {[%emt 0:02:31]} Ne5 {[%emt 0:00:56]} 26. Nb6 $36 {[%emt 0:02:28][%mdl 2048] White has strong initiative.} Rf8 {[%emt 0:02:52]} 27. g4 {[%emt 0:03:53]} (27. Bxd5 $6 Bxh3 28. Re1 h6 $11) 27... Qg6 {[%emt 0:01:30]} 28. Qc7 {[%emt 0:00:28]} ({Of course not} 28. Bxd5 $6 Nxg4 29. Bxe6 (29. hxg4 Qxg4+ 30. Bg3 Bd4 $17) 29... Nxf2+ 30. Kh2 Bd4 31. Bxf7+ Qxf7 32. Qxf7+ Rxf7 $11) 28... Bd8 {[%emt 0:05:36]} 29. Qxe5 {[%emt 0:04:00]} Bxb6 {[%emt 0:00:41]} 30. Bxd5 {[%emt 0:00:17]} Bc7 {[%emt 0:00:35]} 31. Qxc7 {[%emt 0:01:26]} Bxd5 {[%emt 0:00:08]} 32. Qe5 {[%emt 0:01:52]} Ba8 {[%emt 0:00:52]} 33. Rc1 {[%emt 0:00:55]} h5 {[%emt 0:01:16]} 34. f3 {[%emt 0:04:12]} hxg4 {[%emt 0:00:59]} 35. hxg4 {[%emt 0:00:25]} Qb6+ {[%emt 0:03:08]} 36. Be3 {[%emt 0:00:42]} Qb8 {[%emt 0:01:00]} 37. Qxb8 {[%emt 0:01:36] 0x0.001de014802edp-1022s more active pieces.} (37. Rc7 {feels hotter.} Re8 38. Qf4 Qb3 39. Bf2) 37... Rxb8 {[%emt 0:00:07][%mdl 4096] Endgame KRB-KRB} 38. Kf2 {[%emt 0:00:53]} Re8 {[%emt 0:01:33]} 39. Bd4 {[%emt 0:00:48]} f6 {[%emt 0:00:34]} 40. Rc7 $1 {[%emt 0:01:11]} Bd5 {[%emt 0:03:10] [#]} (40... Rf8 $16 41. g5 Rf7 42. Rc8+ Rf8) 41. g5 $1 $18 {[%emt 0:00:58][%cal Bg4g5,Bg5g6][%mdl 32]} Re6 {[%emt 0:00:40] [#]} (41... fxg5 $142 42. Rxg7+ Kf8 43. Rxg5 Bc6) 42. g6 $1 {[%emt 0:01:19] Rc8+ would kill now.} Re8 {[%emt 0:01:15] Against Rc8} 43. e4 {[%emt 0:00:44]} Be6 {[%emt 0:01:45]} 44. Ke3 $2 {[%emt 0:02:38]} (44. e5 $18) 44... Bf5 $1 $11 {[%emt 0:00:28] The position is equal.} 45. Kf4 {[%emt 0:02:15]} Bxg6 {[%emt 0:00:09]} 46. e5 {[%emt 0:01:22]} fxe5+ {[%emt 0:00:51]} 47. Bxe5 {[%emt 0:00:04]} Bf7 {[%emt 0:00:33]} 48. Bc3 {[%emt 0:02:43] Weighted Error Value: White=0.20 (precise) /Black=0.17 (very precise)} 1/2-1/2

[Event "Chessable English Open-ch 2022"]
[Site "Kenilwoth"]
[Date "2022.05.22"]
[Round "7.10"]
[White "Wadsworth, Matthew J"]
[Black "Larkin, Benjamin"]
[Result "1-0"]
[ECO "A29"]
[WhiteElo "2432"]
[BlackElo "1853"]
[Annotator "TA"]
[PlyCount "105"]
[EventDate "2022.05.18"]
[EventType "swiss"]
[EventCountry "ENG"]
[SourceTitle "playchess.com"]
[Source "ChessBase"]
[SourceQuality "1"]
[TimeControl "5400+30"]

{[%evp 24,105,0,0,0,-11,0,0,0,0,0,-11,0,-21,0,0,0,0,0,0,0,2,0,0,0,0,0,0,0,0,27,25,73,60,90,104,102,99,163,161,157,145,150,163,160,175,177,172,211,165,168,188,188,0,122,0,189,181,181,175,230,221,187,191,189,189,184,181,184,138,161,160,178,146,181,162,254,247,426,427,436,408,6295,2287]} 1. c4 {[%emt 0:00:01]} e5 {[%emt 0:01:06]} 2. g3 {[%emt 0:00:04]} Nf6 {[%emt 0:00:22]} 3. Bg2 {[%emt 0:00:06]} d5 {[%emt 0:01:23]} 4. cxd5 {[%emt 0:00:06]} Nxd5 {[%emt 0:00:04]} 5. Nc3 {[%emt 0:00:05]} Nb6 {[%emt 0:00:50]} 6. Nf3 {[%emt 0:00:06]} Nc6 {[%emt 0:00:21]} 7. O-O {[%emt 0:00:11]} Be7 {[%emt 0:00:50]} 8. a3 {[%emt 0:00:05]} O-O {[%emt 0:00:26]} 9. b4 {[%emt 0:00:29]} Be6 {[%emt 0:00:32]} 10. Rb1 {[%emt 0:00:05]} f6 {[%emt 0:00:03]} 11. d3 {[%emt 0:00:34]} a5 {[%emt 0:02:04]} 12. b5 {[%emt 0:00:05]} Nd4 {[%emt 0:00:03]} 13. Nd2 {[%emt 0:00:21]} Qc8 {[%emt 0:00:23] A29: English Opening: Four Knights Variation with 4 g3.} 14. e3 {[%emt 0:01:42]} Nf5 {[%emt 0:00:01]} 15. Qc2 {[%emt 0:01:18]} Rd8 {[%emt 0:00:02] The position is equal. 15...Rd8 is better than 15...a4.} 16. Rd1 {[%emt 0:04:19]} Kh8 {[%emt 0:02:01] [#]} 17. Nc4 $146 {[%emt 0:10:36]} ({Predecessor:} 17. a4 Nd5 18. Nxd5 Bxd5 19. Bxd5 Rxd5 20. Bb2 Bb4 21. Nf3 Qd7 22. e4 Rc5 23. Qe2 {½-½ (36) Marin,M (2537)-Komljenovic,D (2473) Benasque 2005}) 17... Nxc4 {[%emt 0:02:26]} 18. dxc4 {[%emt 0:00:06]} Bxc4 {[%emt 0:03:56]} 19. Rxd8+ {[%emt 0:02:03]} Bxd8 {[%emt 0:00:11]} 20. a4 {[%emt 0:07:20]} c6 {[%emt 0:09:18] Inhibits Nd5.} 21. bxc6 {[%emt 0:17:35]} bxc6 {[%emt 0:00:21]} 22. Ba3 {[%emt 0:11:11]} Be7 {[%emt 0:07:01]} 23. Bxe7 {[%emt 0:05:40]} Nxe7 {[%emt 0:00:01]} 24. Ne4 {[%emt 0:00:06]} Bd5 {[%emt 0:00:44]} 25. Qc5 {[%emt 0:00:38]} Rb8 {[%emt 0:08:38]} 26. Rd1 {[%emt 0:05:16]} Qb7 {[%emt 0:09:41]} 27. Qxa5 {[%emt 0:03:27]} Ra8 {[%emt 0:04:03]} (27... Qb3 $11 28. Ra1 Qd3) 28. Qc3 $16 {[%emt 0:02:13]} Qb3 {[%emt 0:06:45]} 29. Qxb3 {[%emt 0:03:47]} Bxb3 {[%emt 0:00:02]} 30. Rd7 {[%emt 0:00:18]} Ng6 {[%emt 0:07:59]} (30... Nd5 $16) 31. Nc5 $18 {[%emt 0:00:54]} Nf8 {[%emt 0:01:11]} 32. Rd3 {[%emt 0:00:24] White is more active.} ({Stronger than} 32. Nxb3 Nxd7 33. Bxc6 Ra7 $17) 32... Bc4 {[%emt 0:33:42]} 33. Rd6 {[%emt 0:00:21]} Bd5 {[%emt 0:00:00]} 34. e4 {[%emt 0:04:59]} Bf7 {[%emt 0:00:00]} 35. Bf1 {[%emt 0:00:40]} ({Much less strong is} 35. Rxc6 $6 Be8 36. Rc7 Bxa4 $14) 35... Be8 {[%emt 0:00:00]} 36. Ba6 {[%emt 0:02:25]} Kg8 {[%emt 0:00:00]} 37. Bc4+ {[%emt 0:00:23]} Bf7 {[%emt 0:00:00]} 38. Ba6 {[%emt 0:02:41]} (38. Bxf7+ $18 Kxf7 39. Rxc6) 38... Be8 $1 $16 {[%emt 0:00:00] [#]} 39. Bc4+ {[%emt 0:03:21]} (39. Bb7 $1 $16 {[%cal Rb7a8]} Ra7 40. Bxc6 Bxc6 41. Rxc6) 39... Bf7 $18 {[%emt 0:00:00]} 40. Bxf7+ {[%emt 0:00:06]} Kxf7 {[%emt 0:00:00]} 41. Rxc6 {[%emt 0:00:09][%mdl 4096] Endgame KRN-KRN} Ra5 {[%emt 0:00:00]} (41... Ng6 {might work better.} 42. Rc7+ Ne7) 42. Rc7+ {[%emt 0:01:14]} Ke8 {[%emt 0:00:00]} 43. Kf1 {[%emt 0:00:37]} Kd8 {[%emt 0:00:00]} 44. Rc6 {[%emt 0:00:05] [#] And now Nb7+ would win.} Ke8 {[%emt 0:00:00]} 45. Ke2 {[%emt 0:00:48]} Nd7 {[%emt 0:00:00]} 46. Nxd7 {[%emt 0:01:15]} (46. Rc8+ $18 Ke7 47. Nxd7 Kxd7 48. Rc4) 46... Kxd7 {[%emt 0:00:00] KR-KR} 47. Rc4 {[%emt 0:00:03]} Ra7 {[%emt 0:00:00]} 48. Kd3 {[%emt 0:00:59]} Rb7 {[%emt 0:00:00]} 49. Kc2 {[%emt 0:00:53] Prevents Rb1.} h6 {[%emt 0:00:00]} (49... Kd6 {keeps fighting.} 50. f3 Rb8) 50. a5 {[%emt 0:02:05]} Rb5 $2 {[%emt 0:00:00]} (50... Kd6 51. Kc3 Ra7) 51. Ra4 {[%emt 0:00:11]} Kc7 {[%emt 0:00:00]} 52. Kc3 {[%emt 0:01:10] aiming for a6.} Kb7 {[%emt 0:00:00]} (52... Rb7 $142 53. f4 exf4) 53. Rb4 {[%emt 0:00:02] Weighted Error Value: White=0.11 (very precise) /Black=0.19 (very precise)} 1-0